bitfinex/quotes_BTCUSD_20250410
["timestamp","ask_amount","ask_price","bid_price","bid_amount"]
[1744279855924,8.4e-07,81982.0,81981.0,0.53616967]
[1744279856931,8.4e-07,81982.0,81981.0,0.57398953]
[1744279857133,8.4e-07,81982.0,81981.0,0.91398953]
[1744279857334,4.4e-07,81988.0,81986.0,0.3882]
[1744279857533,4.294e-05,81988.0,81987.0,0.77149117]
[1744279857771,4.294e-05,81988.0,81987.0,0.76905253]
[1744279859252,4.294e-05,81988.0,81987.0,0.89943168]
[1744279859449,4.294e-05,81988.0,81987.0,0.86161182]
[1744279862347,4.294e-05,81988.0,81987.0,2.11657182]
[1744279864569,4.294e-05,81988.0,81987.0,2.13111267]
[1744279864787,4.294e-05,81988.0,81987.0,2.16889501]
[1744279865603,4.294e-05,81988.0,81987.0,2.26269501]
[1744279867702,4.294e-05,81988.0,81987.0,2.31269501]
[1744279867897,4.294e-05,81988.0,81987.0,2.31769501]
[1744279868265,4.294e-05,81988.0,81987.0,2.38856685]
[1744279869221,9e-07,82006.0,82005.0,0.256081]
[1744279869444,2e-07,82011.0,82010.0,0.012193]
[1744279869817,4.271e-05,82011.0,82010.0,0.77127966]
[1744279869998,4.271e-05,82011.0,82010.0,0.73115967]
[1744279870175,4.271e-05,82011.0,82010.0,0.76884172]
[1744279870381,4.271e-05,82011.0,82010.0,0.73115967]
[1744279870547,4.271e-05,82011.0,82010.0,0.74354793]
[1744279871151,3.1e-07,82012.0,82011.0,0.61060285]
[1744279871351,3.1e-07,82012.0,82011.0,0.73115667]
[1744279872454,3.1e-07,82012.0,82011.0,0.86149582]
[1744279872660,3.1e-07,82012.0,82011.0,0.71661582]
[1744279872782,3.1e-07,82012.0,82011.0,0.37661582]
[1744279873135,3.1e-07,82012.0,82011.0,0.400942]
[1744279874079,0.04830031,82012.0,82011.0,0.400942]
[1744279875101,3.1e-07,82012.0,82011.0,0.400942]
[1744279876629,3.1e-07,82012.0,82011.0,0.52149582]
[1744279876979,3.1e-07,82012.0,82011.0,0.87603667]
[1744279882022,9.1e-07,82017.0,82016.0,0.356046]
[1744279882201,9.1e-07,82017.0,82016.0,0.49114067]
[1744279884811,9.1e-07,82017.0,82016.0,0.83114067]
[1744279885015,9.1e-07,82017.0,82016.0,0.83614067]
[1744279885175,9.1e-07,82017.0,82016.0,0.90701251]
[1744279885372,9.1e-07,82017.0,82016.0,0.95211251]
[1744279886333,9.1e-07,82017.0,82016.0,1.00211251]
[1744279886520,9.1e-07,82017.0,82016.0,1.03970386]
[1744279886970,9.1e-07,82017.0,82016.0,0.87624067]
[1744279887166,9.1e-07,82017.0,82016.0,0.83114067]
[1744279887322,9.1e-07,82017.0,82016.0,0.96139982]
[1744279888009,9.1e-07,82017.0,82016.0,0.97594067]
[1744279893597,9.1e-07,82017.0,82016.0,1.01357818]
[1744279893812,9.1e-07,82017.0,82016.0,1.10817818]
[1744279894354,9.1e-07,82017.0,82016.0,1.15817818]
[1744279895853,9.1e-07,82017.0,82016.0,1.01353818]
[1744279896060,9.1e-07,82017.0,82016.0,0.97590067]
[1744279896604,9.1e-07,82017.0,82016.0,1.06355368]
[1744279897102,9.1e-07,82017.0,82016.0,1.01355368]
[1744279897500,9.1e-07,82017.0,82016.0,0.97590067]
[1744279897701,9.1e-07,82017.0,82016.0,0.47659982]
[1744279897946,9.1e-07,82017.0,82016.0,0.400806]
[1744279898145,0.0457,82016.0,82014.0,0.243858]
[1744279898345,0.0457,82016.0,82015.0,0.400809]
[1744279898866,0.0457,82016.0,82015.0,0.14476]
[1744279899216,0.0453,82015.0,82011.0,0.003614]
[1744279899413,0.0453,82015.0,82014.0,0.24386]
[1744279899657,0.0453,82015.0,82014.0,0.256053]
[1744279900681,0.0457,82016.0,82015.0,0.256049]
[1744279901299,9.1e-07,82017.0,82016.0,0.256046]
[1744279901470,9.1e-07,82017.0,82014.0,0.24386]
[1744279901673,0.243857,82016.0,82012.0,0.14476]
[1744279901894,0.0453,82015.0,82014.0,0.256053]
[1744279902503,0.06741798,82015.0,82014.0,0.256053]
[1744279903274,0.0453,82015.0,82014.0,0.256053]
[1744279906881,9.1e-07,82017.0,82016.0,0.256046]
[1744279911458,9.1e-07,82017.0,82016.0,0.73114067]
[1744279912872,9.1e-07,82017.0,82016.0,0.71659982]
[1744279913004,9.1e-07,82017.0,82016.0,0.740806]
[1744279913750,9.1e-07,82017.0,82016.0,0.87590067]
[1744279915214,9.1e-07,82017.0,82016.0,0.740806]
[1744279915820,0.047,82016.0,82015.0,0.256049]
[1744279916024,0.047,82016.0,82015.0,0.400809]
[1744279916426,0.047,82016.0,82015.0,0.256049]
[1744279916661,0.047,82016.0,82015.0,0.400809]
[1744279919542,9.1e-07,82017.0,82016.0,0.256046]
[1744279920373,9.1e-07,82017.0,82016.0,0.73114067]
[1744279920578,9.1e-07,82017.0,82016.0,0.83114067]
[1744279921149,9.1e-07,82017.0,82016.0,0.256046]
[1744279921398,0.012193,82012.0,82011.0,0.003614]
[1744279921538,0.0463,82013.0,82012.0,0.400819]
[1744279923581,0.04980091,82017.0,82016.0,0.256046]
[1744279926020,9.1e-07,82017.0,82016.0,0.256046]
[1744279930455,9.1e-07,82017.0,82016.0,0.39114067]
[1744279931816,9.1e-07,82017.0,82016.0,0.73114067]
[1744279932097,9.1e-07,82017.0,82016.0,0.76884518]
[1744279933743,9.1e-07,82017.0,82016.0,0.81584518]
[1744279934299,9.1e-07,82017.0,82016.0,0.76884518]
[1744279935636,9.1e-07,82017.0,82016.0,0.77786533]
[1744279939342,9.1e-07,82017.0,82016.0,0.92254533]
[1744279939766,9.1e-07,82017.0,82016.0,0.88484082]
[1744279940127,9.1e-07,82017.0,82016.0,0.9225168]
[1744279940429,9.1e-07,82017.0,82016.0,0.64123633]
[1744279940635,9.1e-07,82017.0,82016.0,0.7392202]
[1744279941188,9.1e-07,82017.0,82016.0,0.88330578]
[1744279941395,9.1e-07,82017.0,82016.0,0.92097481]
[1744279941588,9.1e-07,82017.0,82016.0,1.01387481]
[1744279943450,9.1e-07,82017.0,82016.0,1.01887481]
[1744279944497,9.1e-07,82017.0,82016.0,1.01387481]
[1744279946249,9.1e-07,82017.0,82016.0,1.12232559]
[1744279952150,9.1e-07,82017.0,82016.0,0.97764559]
[1744279952351,9.1e-07,82017.0,82016.0,1.07622559]
[1744279953621,9.1e-07,82017.0,82016.0,1.02942559]
[1744279954021,9.1e-07,82017.0,82016.0,0.88474559]
[1744279954221,9.1e-07,82017.0,82016.0,1.01488474]
[1744279954421,9.1e-07,82017.0,82016.0,0.97721571]
[1744279954625,9.1e-07,82017.0,82016.0,0.99175656]
[1744279955956,9.1e-07,82017.0,82016.0,1.02938123]
[1744279956369,9.1e-07,82017.0,82016.0,0.96883045]
[1744279956572,0.004,82039.0,82038.0,0.255978]
[1744279956778,0.00442512,82039.0,82038.0,0.53575267]
[1744279957176,0.00442512,82039.0,82038.0,0.400658]
[1744279959415,0.00442512,82039.0,82038.0,0.53575267]
[1744279963702,0.00442512,82039.0,82038.0,0.52121182]
[1744279963905,0.00442512,82039.0,82038.0,0.400658]
[1744279964170,0.00442512,82039.0,82038.0,0.400618]
[1744279964581,0.00442512,82039.0,82038.0,0.86117182]
[1744279964798,0.00442512,82039.0,82038.0,0.87571267]
[1744279966033,0.00442512,82039.0,82038.0,0.91338529]
[1744279966441,0.00442512,82039.0,82038.0,0.77779961]
[1744279966788,0.00442512,82039.0,82038.0,0.92239961]
[1744279970871,0.00442512,82039.0,82038.0,0.87018614]
[1744279972099,0.00442512,82039.0,82038.0,0.88472699]
[1744279972312,0.00442512,82039.0,82038.0,0.92239694]
[1744279975991,0.00442512,82039.0,82038.0,0.89880177]
[1744279977380,0.00442512,82039.0,82038.0,2.15284177]
[1744279979582,0.05092512,82039.0,82038.0,2.03228795]
[1744279979775,0.05092512,82039.0,82038.0,1.850018]
[1744279980016,0.05092512,82039.0,82038.0,1.654618]
[1744279983295,0.09942512,82039.0,82038.0,1.654618]
[1744279984496,0.05092512,82039.0,82038.0,1.654618]
[1744279984696,0.00442512,82039.0,82038.0,1.654618]
[1744279991239,0.00442512,82039.0,82038.0,1.510018]
[1744279991438,0.00442512,82039.0,82038.0,1.654618]
[1744279991704,0.00442512,82039.0,82038.0,0.400578]
[1744279991942,0.00442512,82039.0,82038.0,0.1446]
[1744279991943,0.05032512,82039.0,82038.0,0.1446]
[1744279992114,0.05032512,82039.0,82038.0,0.388389]
[1744279992291,0.07261961,82039.0,82038.0,0.388389]
[1744279992477,0.07261961,82039.0,82038.0,0.400578]
[1744279994167,0.05032512,82039.0,82038.0,0.400578]
[1744279994567,0.07261961,82039.0,82038.0,0.400578]
[1744279998788,0.07261961,82039.0,82038.0,0.388389]
[1744279998988,0.07261961,82039.0,82038.0,0.400578]
[1744280001240,0.07261961,82039.0,82038.0,0.1446]
[1744280001646,0.31640561,82039.0,82038.0,0.1446]
[1744280003048,0.07261961,82039.0,82038.0,0.1446]
[1744280003253,0.32859461,82039.0,82038.0,0.1446]
[1744280003654,0.243825,82026.0,82023.0,0.243833]
[1744280003933,0.243821,82029.0,82024.0,0.14456]
[1744280004127,0.01219,82032.0,82025.0,0.012191]
[1744280004718,0.24381,82031.0,82025.0,0.012191]
[1744280004919,0.255994,82034.0,82028.0,0.01219]
[1744280005346,0.255987,82035.0,82031.0,0.24381]
[1744280005649,0.02277952,82033.0,82031.0,0.24381]
[1744280006027,0.243803,82034.0,82031.0,0.24381]
[1744280006388,0.291109,82032.0,82029.0,0.243816]
[1744280006594,0.01219,82031.0,82024.0,0.14456]
[1744280006799,0.045,82028.0,82025.0,0.012191]
[1744280007045,0.045,82028.0,82027.0,0.243822]
[1744280007677,0.06722518,82028.0,82027.0,0.243822]
[1744280007882,0.06722518,82028.0,82027.0,0.256013]
[1744280008237,0.045,82028.0,82027.0,0.256013]
[1744280008499,0.06719045,82028.0,82027.0,0.256013]
[1744280009529,0.045,82028.0,82027.0,0.256013]
[1744280009734,0.0473,82032.0,82031.0,0.256]
[1744280009947,0.0463,82035.0,82034.0,0.243801]
[1744280010685,0.0463,82035.0,82029.0,0.243813]
[1744280010884,0.01219,82034.0,82030.0,0.243811]
[1744280011085,0.01219,82032.0,82025.0,0.012191]
[1744280011292,0.243813,82030.0,82026.0,0.388379]
[1744280011495,0.243812,82031.0,82028.0,0.243819]
[1744280011808,0.24381,82031.0,82029.0,0.243814]
[1744280011950,0.255997,82032.0,82029.0,0.243814]
[1744280012176,0.243807,82032.0,82029.0,0.243814]
[1744280013703,0.255994,82034.0,82031.0,0.24381]
[1744280013903,0.243804,82034.0,82031.0,0.24381]
[1744280014107,0.290098,82035.0,82031.0,0.24381]
[1744280014403,0.41065182,82035.0,82030.0,0.243812]
[1744280014627,0.41065182,82035.0,82031.0,0.14456]
[1744280014828,0.243801,82034.0,82031.0,0.388369]
[1744280015031,0.02277964,82034.0,82031.0,0.388369]
[1744280015268,0.41065182,82035.0,82031.0,0.388369]
[1744280015615,0.41065182,82035.0,82032.0,0.243804]
[1744280015869,0.243807,82032.0,82031.0,0.14456]
[1744280016091,0.17904282,82035.0,82031.0,0.14456]
[1744280016311,0.243805,82033.0,82031.0,0.14456]
[1744280016535,0.243805,82033.0,82031.0,0.388369]
[1744280016749,0.02278412,82032.0,82031.0,0.388369]
[1744280017959,0.02278412,82032.0,82031.0,0.14456]
[1744280018191,0.02278412,82032.0,82031.0,0.38837]
[1744280022036,0.02278412,82032.0,82031.0,0.14456]
[1744280022274,0.0463,82035.0,82034.0,0.255991]
[1744280022513,0.4144,82038.0,82037.0,0.255981]
[1744280023380,0.4144,82038.0,82037.0,0.400581]
[1744280023864,0.658191,82038.0,82037.0,0.1446]
[1744280024103,0.71848,82038.0,82037.0,0.1446]
[1744280024551,0.74128555,82038.0,82037.0,0.1446]
[1744280024775,0.74983769,82038.0,82037.0,0.1446]
[1744280025203,0.74983769,82038.0,82029.0,0.243814]
[1744280025204,0.243809,82032.0,82029.0,0.243814]
[1744280025468,0.243805,82033.0,82030.0,0.14456]
[1744280025699,0.243796,82036.0,82033.0,0.243801]
[1744280025927,0.01219,82034.0,82030.0,0.38837]
[1744280026162,0.255985,82036.0,82030.0,0.15675]
[1744280026355,0.255985,82036.0,82031.0,0.243809]
[1744280026690,0.2438,82035.0,82032.0,0.243805]
[1744280026912,0.26660922,82035.0,82032.0,0.243805]
[1744280027138,0.02280922,82034.0,82032.0,0.243805]
[1744280028009,0.02280922,82033.0,82032.0,0.243805]
[1744280028234,0.24381,82031.0,82030.0,0.14456]
[1744280028653,0.012191,82022.0,82007.0,0.41352]
[1744280028798,0.012192,82018.0,82015.0,0.14452]
[1744280028992,0.256046,82016.0,82015.0,0.14452]
[1744280029221,0.27819181,82016.0,82015.0,0.14452]
[1744280029977,0.32339181,82016.0,82015.0,0.14452]
[1744280030179,0.3462079,82016.0,82015.0,0.14452]
[1744280030813,0.35476053,82016.0,82015.0,0.14452]
[1744280031212,0.36616423,82016.0,82015.0,0.14452]
[1744280033874,0.90111805,82016.0,82015.0,0.14452]
[1744280034052,0.256059,82012.0,81999.0,0.14452]
[1744280034254,0.39942891,82012.0,81999.0,0.14452]
[1744280034594,0.40798154,82012.0,81999.0,0.14452]
[1744280034755,0.4414789,82012.0,81999.0,0.14452]
[1744280035383,0.43335113,82012.0,81996.0,0.243908]
[1744280035614,0.43335113,82012.0,81987.0,0.256136]
[1744280035615,1.01468372,82012.0,81982.0,0.0003372]
[1744280035786,1.35468372,82012.0,81996.0,0.14452]
[1744280036200,1.28235113,82012.0,81996.0,0.14452]
[1744280036916,1.28235113,82012.0,81984.0,0.0003372]
[1744280037120,1.28235113,82012.0,81993.0,0.14456]
[1744280037480,1.29088132,82012.0,81993.0,0.14456]
[1744280038087,1.69088132,82012.0,81993.0,0.14456]
[1744280038613,1.69088132,82012.0,81996.0,0.012195]
[1744280038793,1.69088132,82012.0,81999.0,0.243905]
[1744280038992,1.69088132,82012.0,81995.0,0.243916]
[1744280039197,1.67947762,82012.0,81996.0,0.243914]
[1744280039532,1.67094743,82012.0,81998.0,0.243908]
[1744280039697,1.27094743,82012.0,81996.0,0.256109]
[1744280039882,1.27094743,82012.0,81997.0,0.243909]
[1744280040082,1.27094743,82012.0,82001.0,0.256092]
[1744280040274,1.27094743,82012.0,82001.0,0.012194]
[1744280040480,1.22284743,82012.0,82002.0,0.243896]
[1744280040916,1.20003134,82012.0,81999.0,0.243902]
[1744280041119,0.86003134,82012.0,81999.0,0.012195]
[1744280041303,0.86003134,82012.0,81999.0,0.2561]
[1744280041497,0.86003134,82012.0,82000.0,0.2439]
[1744280041695,0.86003134,82012.0,82001.0,0.243898]
[1744280041898,0.81353134,82012.0,82001.0,0.243898]
[1744280042165,0.81353134,82012.0,82000.0,0.256095]
[1744280042281,0.81353134,82012.0,82001.0,0.243898]
[1744280043038,0.81353134,82012.0,82000.0,0.256095]
[1744280044488,0.81353134,82012.0,82000.0,0.2439]
[1744280045043,0.81353134,82012.0,82001.0,0.243897]
[1744280045445,0.81353134,82012.0,82000.0,0.256097]
[1744280046049,0.81353134,82012.0,82001.0,0.243899]
[1744280046266,0.81353134,82012.0,82000.0,0.256097]
[1744280046449,0.81353134,82012.0,82000.0,0.243902]
[1744280046654,0.81353134,82012.0,81999.0,0.243904]
[1744280047617,0.80133834,82012.0,81999.0,0.243904]
[1744280047941,0.81353134,82012.0,81999.0,0.243904]
[1744280048780,0.81353134,82012.0,82000.0,0.243901]
[1744280049181,0.81353134,82012.0,81999.0,0.243904]
[1744280050203,0.69297752,82012.0,82000.0,0.243899]
[1744280050950,0.69297752,82012.0,81999.0,0.243899]
[1744280051151,0.81353134,82012.0,81999.0,0.14456]
[1744280051359,0.83626523,82012.0,81999.0,0.14456]
[1744280051534,0.99770601,82012.0,81993.0,0.14456]
[1744280051717,1.00623169,82012.0,81993.0,0.14456]
[1744280051916,1.41759974,82012.0,81993.0,0.14456]
[1744280052123,1.69035896,82012.0,81990.0,0.14456]
[1744280054037,1.67899091,82012.0,81990.0,0.14456]
[1744280054246,1.77166176,82012.0,81990.0,0.14456]
[1744280056237,0.301825,81991.0,81990.0,0.14456]
[1744280056444,0.256144,81985.0,81982.0,0.0003372]
[1744280056641,0.39847239,81985.0,81982.0,0.0003372]
[1744280056840,0.42120628,81985.0,81982.0,0.0003372]
[1744280057477,0.42973952,81985.0,81982.0,0.0003372]
[1744280057688,0.42973952,81985.0,81984.0,0.00037971]
[1744280057903,0.44111711,81985.0,81984.0,0.00037971]
[1744280059456,0.45360281,81985.0,81984.0,0.00037971]
[1744280060028,0.44140581,81985.0,81984.0,0.00037971]
[1744280060494,1.26800281,81985.0,81984.0,0.00037971]
[1744280060722,0.84809198,81985.0,81984.0,0.00037971]
[1744280061213,0.43617457,81985.0,81984.0,0.00037971]
[1744280061433,0.69231857,81985.0,81984.0,0.00037971]
[1744280063971,0.43617457,81985.0,81984.0,0.24432971]
[1744280064424,0.43617457,81985.0,81984.0,0.25652671]
[1744280064647,0.4144,81985.0,81984.0,0.25652671]
[1744280064865,0.43618105,81985.0,81984.0,0.25652671]
[1744280065097,0.43618105,81985.0,81984.0,0.40104671]
[1744280066253,0.02178105,81985.0,81984.0,0.40104671]
[1744280066474,0.658314,81996.0,81995.0,0.256112]
[1744280066475,0.4144,81996.0,81995.0,0.256112]
[1744280066691,0.43618934,81996.0,81995.0,0.256112]
[1744280068332,0.43618934,81996.0,81995.0,0.243917]
[1744280068585,0.43618934,81996.0,81994.0,0.243918]
[1744280068827,0.43618934,81996.0,81995.0,0.243917]
[1744280069555,0.43618934,81996.0,81994.0,0.256114]
[1744280069783,0.68010434,81996.0,81994.0,0.243918]
[1744280070260,0.43618934,81996.0,81995.0,0.243917]
[1744280070900,0.02178934,81996.0,81995.0,0.256112]
[1744280071149,0.02178934,81996.0,81995.0,0.48650667]
[1744280071361,0.4144,82014.0,82013.0,0.243863]
[1744280071583,0.02182732,82014.0,82013.0,0.243863]
[1744280071802,0.658257,82016.0,82011.0,0.256062]
[1744280072034,0.02183113,82015.0,82013.0,0.243862]
[1744280072492,0.02225625,82015.0,82013.0,0.243862]
[1744280075828,0.02225625,82015.0,82014.0,0.24386]
[1744280076553,0.02225625,82015.0,82012.0,0.256057]
[1744280076764,0.02225625,82015.0,82013.0,0.243863]
[1744280077000,0.02225625,82015.0,82014.0,0.24386]
[1744280077245,0.02225625,82015.0,82014.0,0.256053]
[1744280077492,0.00042512,82015.0,82014.0,0.256053]
[1744280077969,0.00042512,82015.0,82014.0,0.40355584]
[1744280078208,0.00042512,82015.0,82014.0,0.256053]
[1744280078691,0.00042512,82015.0,82014.0,0.400533]
[1744280078918,0.00042512,82015.0,82014.0,0.87562767]
[1744280079160,0.00042512,82015.0,82014.0,0.93507717]
[1744280079404,0.0001686,82040.0,82038.0,0.255978]
[1744280079641,0.0001686,82040.0,82038.0,0.441258]
[1744280079642,0.00412437,82039.0,82038.0,0.441258]
[1744280082793,0.00412437,82039.0,82038.0,0.296778]
[1744280082996,0.00412437,82039.0,82038.0,0.255978]
[1744280083511,0.00412437,82039.0,82037.0,0.24379]
[1744280083745,0.255984,82036.0,82035.0,0.14444]
[1744280084055,0.39874834,82036.0,82035.0,0.14444]
[1744280084398,0.255998,82032.0,82026.0,0.243825]
[1744280084660,0.012191,82025.0,82015.0,0.012192]
[1744280084860,0.012192,82018.0,82014.0,0.14444]
[1744280085093,0.02214992,82017.0,82016.0,0.243852]
[1744280085300,0.02214992,82017.0,82016.0,0.256044]
[1744280085495,0.24384,82021.0,82017.0,0.243849]
[1744280085864,0.02215373,82020.0,82017.0,0.243849]
[1744280086078,0.02215373,82020.0,82018.0,0.243848]
[1744280086463,0.02215373,82020.0,82017.0,0.243849]
[1744280086707,0.02215373,82020.0,82018.0,0.243848]
[1744280086926,0.02215373,82020.0,82016.0,0.243854]
[1744280087229,0.012192,82018.0,82014.0,0.388299]
[1744280087398,0.02214992,82017.0,82014.0,0.388299]
[1744280088206,0.02214992,82017.0,82015.0,0.243857]
[1744280088367,0.02214992,82017.0,82014.0,0.14444]
[1744280088581,0.012192,82015.0,82014.0,0.14444]
[1744280088777,0.56922703,82015.0,82014.0,0.14444]
[1744280089014,0.243894,82003.0,82001.0,0.14436]
[1744280089374,0.012194,82004.0,82001.0,0.14436]
[1744280089375,0.02206527,82002.0,82001.0,0.14436]
[1744280089729,0.243894,82003.0,82001.0,0.14436]
[1744280089937,0.02206527,82002.0,82001.0,0.14436]
[1744280090152,0.02206527,82002.0,82001.0,0.400453]
[1744280090357,0.02206527,82002.0,82001.0,0.40087812]
[1744280090557,0.243876,82009.0,82005.0,0.243885]
[1744280090883,0.02207289,82008.0,82006.0,0.243883]
[1744280091051,0.26595189,82008.0,82005.0,0.012194]
[1744280091259,0.26595089,82008.0,82005.0,0.256079]
[1744280091439,0.26595089,82008.0,82005.0,0.243885]
[1744280092932,0.02207289,82008.0,82006.0,0.243883]
[1744280093286,0.26595089,82008.0,82005.0,0.243886]
[1744280093461,0.02207289,82008.0,82007.0,0.243881]
[1744280093788,0.243873,82010.0,82007.0,0.243881]
[1744280093946,0.0219825,82008.0,82007.0,0.243881]
[1744280094147,0.243873,82010.0,82007.0,0.243881]
[1744280094349,0.0219825,82008.0,82007.0,0.243881]
[1744280094568,0.243873,82010.0,82007.0,0.243881]
[1744280094885,0.25604,82019.0,82010.0,0.256065]
[1744280095041,0.243866,82012.0,82008.0,0.243878]
[1744280095261,0.26585531,82011.0,82007.0,0.256075]
[1744280095486,0.03417931,82011.0,82005.0,0.243886]
[1744280095695,0.243878,82008.0,82005.0,0.243886]
[1744280095893,0.243885,82006.0,82003.0,0.243891]
[1744280096087,0.02197868,82005.0,82004.0,0.243889]
[1744280096395,0.256081,82005.0,82004.0,0.1444]
[1744280096603,0.02197868,82005.0,82004.0,0.38829]
[1744280096814,0.02197868,82005.0,82004.0,0.400484]
[1744280096972,0.012193,82011.0,82007.0,0.243878]
[1744280097175,0.243872,82010.0,82006.0,0.243884]
[1744280097370,0.243881,82007.0,82005.0,0.243886]
[1744280097711,0.02197995,82006.0,82005.0,0.243886]
[1744280098076,0.256068,82009.0,82005.0,0.243886]
[1744280098443,0.0219825,82008.0,82007.0,0.256075]
[1744280098763,0.061291,82023.0,82014.0,0.256053]
[1744280098963,0.243852,82017.0,82013.0,0.243863]
[1744280099163,0.02199081,82015.0,82013.0,0.243863]
[1744280099478,0.02196511,82014.0,82013.0,0.243863]
[1744280099662,0.243857,82016.0,82013.0,0.243863]
[1744280099859,0.537562,82041.0,82012.0,0.243866]
[1744280099860,0.0219658,82015.0,82012.0,0.243866]
[1744280100064,0.243843,82020.0,82015.0,0.012192]
[1744280100296,0.012192,82015.0,82008.0,0.012193]
[1744280100484,0.243863,82014.0,82011.0,0.243869]
[1744280100717,0.02196384,82013.0,82011.0,0.243869]
[1744280101194,0.02196384,82013.0,82012.0,0.012193]
[1744280101401,0.02196384,82013.0,82009.0,0.243875]
[1744280101612,0.243866,82012.0,82008.0,0.012193]
[1744280101811,0.02196257,82012.0,82010.0,0.243872]
[1744280102181,0.243869,82012.0,82011.0,0.1444]
[1744280104511,0.256062,82012.0,82011.0,0.1444]
[1744280104916,0.243869,82012.0,82011.0,0.1444]
[1744280105131,0.012192,82020.0,82011.0,0.388266]
[1744280105353,0.243836,82024.0,82021.0,0.243839]
[1744280105696,0.34,82030.0,82021.0,0.243839]
[1744280105697,0.4144,82033.0,82027.0,0.012191]
[1744280105903,0.243815,82030.0,82026.0,0.243822]
[1744280106219,0.243817,82029.0,82027.0,0.1444]
[1744280106591,0.243819,82028.0,82027.0,0.1444]
[1744280106778,0.256009,82028.0,82027.0,0.1444]
[1744280106979,0.243862,82014.0,82010.0,0.243872]
[1744280107177,0.243858,82015.0,82012.0,0.243864]
[1744280107569,0.243857,82016.0,82013.0,0.243862]
[1744280107760,0.243822,82030.0,82018.0,0.012192]
[1744280107992,0.243822,82030.0,82011.0,0.156593]
[1744280107993,0.24384,82021.0,82016.0,0.012192]
[1744280108193,0.4144,82024.0,82023.0,0.256025]
[1744280108961,0.4144,82024.0,82019.0,0.012192]
[1744280109078,0.4144,82024.0,82020.0,0.256034]
[1744280109079,0.658231,82024.0,82020.0,0.256034]
[1744280109272,0.4144,82024.0,82021.0,0.388239]
[1744280109531,0.4144,82024.0,82023.0,0.256025]
[1744280110104,0.243801,82034.0,82028.0,0.01219]
[1744280110311,0.243801,82034.0,82030.0,0.243811]
[1744280110483,0.012189,82035.0,82031.0,0.243808]
[1744280110688,0.243803,82034.0,82031.0,0.243808]
[1744280110928,0.01219,82033.0,82020.0,0.243841]
[1744280111127,0.01219,82028.0,82020.0,0.012192]
[1744280111372,0.012192,82019.0,82009.0,0.012193]
[1744280111667,0.2622487,82018.0,82015.0,0.243855]
[1744280111869,0.0183987,82018.0,82017.0,0.243851]
[1744280112210,0.4144,82021.0,82019.0,0.243845]
[1744280112469,0.4144,82021.0,82020.0,0.256034]
[1744280112691,0.43279177,82021.0,82020.0,0.256034]
[1744280113272,0.01839177,82021.0,82020.0,0.256034]
[1744280113469,0.243822,82027.0,82023.0,0.243831]
[1744280113667,0.01837429,82026.0,82025.0,0.243827]
[1744280113875,0.256014,82028.0,82025.0,0.243827]
[1744280114073,0.0183692,82027.0,82025.0,0.243827]
[1744280114700,0.243821,82028.0,82025.0,0.243827]
[1744280114893,0.01836793,82027.0,82025.0,0.243827]
[1744280115188,0.01836793,82027.0,82021.0,0.012191]
[1744280115412,0.26740899,82026.0,82022.0,0.243834]
[1744280115604,0.01139299,82026.0,82025.0,0.243828]
[1744280116117,0.01139299,82026.0,82023.0,0.256022]
[1744280116362,0.01139299,82026.0,82023.0,0.256024]
[1744280116607,0.36437782,82027.0,82024.0,0.243829]
[1744280116817,0.12055382,82027.0,82025.0,0.243827]
[1744280117028,0.36437682,82027.0,82024.0,0.256021]
[1744280117471,0.12055382,82027.0,82025.0,0.243827]
[1744280118134,0.12055382,82027.0,82025.0,0.388147]
[1744280118576,0.12055382,82027.0,82025.0,0.400338]
[1744280118810,0.255991,82034.0,82030.0,0.24381]
[1744280119044,0.12909719,82032.0,82030.0,0.256]
[1744280119284,0.12909719,82032.0,82030.0,0.24381]
[1744280119455,0.12909719,82032.0,82031.0,0.256]
[1744280119818,0.12055382,82032.0,82031.0,0.256]
[1744280120219,0.53495382,82032.0,82030.0,0.24381]
[1744280120421,0.54714382,82032.0,82027.0,0.243819]
[1744280120663,0.00854391,82031.0,82027.0,0.012191]
[1744280120865,0.00854391,82031.0,82028.0,0.243813]
[1744280121067,0.00854391,82031.0,82026.0,0.243824]
[1744280121429,0.13274382,82030.0,82018.0,0.012192]
[1744280121631,0.01219,82028.0,82023.0,0.14432]
[1744280121819,0.243822,82027.0,82023.0,0.388153]
[1744280122024,0.12055382,82030.0,82023.0,0.14432]
[1744280122251,0.36436682,82030.0,82026.0,0.243825]
[1744280122373,0.25235991,82029.0,82025.0,0.243825]
[1744280122575,0.243823,82027.0,82023.0,0.400343]
[1744280122785,0.243823,82027.0,82024.0,0.243829]
[1744280122985,0.243823,82027.0,82024.0,0.24383]
[1744280123184,0.12055382,82029.0,82024.0,0.243828]
[1744280123432,0.243824,82027.0,82024.0,0.24383]
[1744280123632,0.13274382,82029.0,82024.0,0.243831]
[1744280123807,0.256015,82028.0,82025.0,0.243827]
[1744280124016,0.243826,82026.0,82023.0,0.400344]
[1744280124219,0.243825,82026.0,82023.0,0.388153]
[1744280124415,0.26455493,82028.0,82023.0,0.156511]
[1744280124627,0.25236893,82027.0,82025.0,0.243827]
[1744280124877,0.243826,82026.0,82023.0,0.156511]
[1744280125024,0.25236893,82027.0,82024.0,0.24383]
[1744280125231,0.02073693,82027.0,82023.0,0.14432]
[1744280125433,0.25237293,82027.0,82023.0,0.388153]
[1744280125620,0.243827,82026.0,82023.0,0.388153]
[1744280125819,0.243827,82027.0,82024.0,0.243828]
[1744280126044,0.243827,82027.0,82023.0,0.388153]
[1744280126246,0.24383,82025.0,82023.0,0.14432]
[1744280126445,0.25601,82028.0,82023.0,0.156511]
[1744280126781,0.243823,82027.0,82024.0,0.243828]
[1744280127064,0.01219,82028.0,82023.0,0.14432]
[1744280127373,0.243827,82026.0,82023.0,0.388152]
[1744280127673,0.00855028,82025.0,82024.0,0.243829]
[1744280127895,0.02694682,82025.0,82024.0,0.243831]
[1744280128188,0.02694682,82025.0,82023.0,0.14432]
[1744280128395,0.02694682,82025.0,82023.0,0.388153]
[1744280128614,0.02694682,82025.0,82024.0,0.256022]
[1744280128982,0.0001686,82040.0,82031.0,0.256]
[1744280129190,0.0001686,82040.0,82036.0,0.255984]
[1744280129390,0.0001686,82040.0,82032.0,0.243807]
[1744280129600,0.01219,82029.0,82028.0,0.14432]
[1744280129789,0.12055382,82029.0,82023.0,0.012191]
[1744280129992,0.01219,82028.0,82024.0,0.14432]